[Event "POR-chT 1st League 2017"]
[Site "Leiria"]
[Date "2017.07.17"]
[Round "1"]
[White "Luch, Michal"]
[Black "Santos, Antonio P"]
[Result "1-0"]
[ECO "D11"]
[WhiteElo "2393"]
[BlackElo "2237"]
[Annotator "NA"]
[PlyCount "91"]
[EventDate "2017.??.??"]
[EventType "team-tourn"]
[EventCountry "POR"]
[SourceTitle "playchess.com"]
[Source "ChessBase"]
[SourceQuality "1"]
[TimeControl "5400+30"]

1. d4 {[%emt 0:00:00]} d5 {[%emt 0:15:28]} 2. c4 {[%emt 0:00:00]} c6 {[%emt 0:00:20]} 3. Nf3 {[%emt 0:03:14]} Nf6 {[%emt 0:00:10]} 4. e3 {[%emt 0:04:26]} e6 {[%emt 0:00:11]} 5. Bd3 {[%emt 0:00:06]} Nbd7 {[%emt 0:00:51]} 6. Nbd2 {[%emt 0:00:03]} Bd6 {[%emt 0:04:52]} 7. O-O {[%emt 0:00:10]} O-O {[%emt 0:00:07]} 8. e4 {[%emt 0:00:04]} e5 {[%emt 0:00:52]} 9. cxd5 {[%emt 0:00:27]} cxd5 {[%emt 0:00:12]} 10. exd5 {[%emt 0:00:42]} exd4 {[%emt 0:00:11]} 11. Ne4 {[%emt 0:00:55]} Nxe4 {[%emt 0:00:09]} 12. Bxe4 {[%emt 0:00:02]} Nf6 {[%emt 0:10:45] D30: Queen's Gambit Declined: Systems without Nc3} 13. Qxd4 {[%emt 0:02:47]} (13. Bg5 Re8 {½-½ (13) Potkin,V (2599)-Dubov,D (2659) Sochi 2015}) 13... Nxe4 {[%emt 0:00:10]} 14. Qxe4 {[%emt 0:00:02]} Re8 {[%emt 0:00:19]} 15. Qd4 {[%emt 0:01:00]} Bf5 {[%emt 0:00:29]} 16. Bg5 {[%emt 0:04:40]} Qa5 {[%emt 0:19:56]} 17. Bd2 {[%emt 0:03:23]} Qc5 {[%emt 0:00:46]} 18. Bc3 $146 {[%emt 0:02:52]} ({Predecessor:} 18. Rfe1 Rxe1+ 19. Rxe1 Rd8 20. Be3 Qxd4 21. Nxd4 {½-½ (86) Lipka,J (2431)-Simek,P (2253) Czechia 2008}) 18... Qxd4 {[%emt 0:01:17]} 19. Nxd4 {[%emt 0:02:01]} Be4 {[%emt 0:13:42]} 20. Rad1 {[%emt 0:20:54]} a6 {[%emt 0:25:54]} 21. Rfe1 {[%emt 0:17:47]} h6 {[%emt 0:00:15]} 22. Ne6 {[%emt 0:02:11]} fxe6 {[%emt 0:03:32]} 23. Rxe4 {[%emt 0:00:02]} exd5 {[%emt 0:00:12]} 24. Rxe8+ {[%emt 0:00:28]} Rxe8 {[%emt 0:00:02]} 25. Rxd5 {[%emt 0:00:05]} Re6 {[%emt 0:00:30]} 26. h4 {[%emt 0:04:14]} g6 {[%emt 0:00:14]} 27. g4 {[%emt 0:08:07]} Be7 {[%emt 0:01:23]} 28. h5 {[%emt 0:06:22]} gxh5 {[%emt 0:00:03]} 29. Rxh5 {[%emt 0:00:28]} Bg5 {[%emt 0:00:47]} 30. Kg2 {[%emt 0:00:02]} b5 {[%emt 0:00:40]} 31. Kf3 {[%emt 0:03:08]} Kh7 {[%emt 0:00:25]} 32. Rh1 {[%emt 0:00:50]} Re7 {[%emt 0:01:02]} 33. Rd1 {[%emt 0:01:15]} Rf7+ {[%emt 0:00:03]} 34. Kg3 {[%emt 0:00:10]} Bf4+ {[%emt 0:00:33]} 35. Kg2 {[%emt 0:00:10]} Re7 {[%emt 0:00:31]} 36. Rd5 $18 {[%emt 0:01:08]} Rf7 {[%emt 0:00:59]} 37. Rd8 {[%emt 0:00:37]} Rb7 {[%emt 0:00:22]} 38. a3 {[%emt 0:06:41]} Rb6 {[%emt 0:00:16]} 39. Rf8 {[%emt 0:00:29]} Bc1 {[%emt 0:00:17]} 40. f4 {[%emt 0:00:32]} Kg6 {[%emt 0:00:23]} 41. Kf3 {[%emt 0:01:17]} Rc6 {[%emt 0:00:50]} 42. Kg3 {[%emt 0:01:24]} h5 {[%emt 0:00:21]} 43. f5+ {[%emt 0:00:43]} Kg5 {[%emt 0:00:16]} 44. Rg8+ {[%emt 0:00:08]} Kh6 {[%emt 0:00:05]} 45. Rh8+ {[%emt 0:00:15]} Kg5 {[%emt 0:00:10]} 46. Rxh5# 1-0

[Event "POR-chT 1st League 2017"]
[Site "Leiria"]
[Date "2017.07.17"]
[Round "1"]
[White "Espineira Gonzalez, Diego"]
[Black "Polaczek, Richard"]
[Result "1/2-1/2"]
[ECO "C04"]
[WhiteElo "2364"]
[BlackElo "2406"]
[Annotator "ChessBase"]
[PlyCount "84"]
[EventDate "2017.??.??"]
[EventType "team-tourn"]
[EventCountry "POR"]
[SourceTitle "playchess.com"]
[Source "ChessBase"]
[SourceQuality "1"]
[TimeControl "5400+30"]

1. e4 e6 2. d4 d5 3. Nd2 Nc6 4. Ngf3 Nf6 5. e5 Nd7 6. Be2 Be7 7. Nf1 O-O 8. Ne3 f6 9. exf6 Nxf6 10. O-O Bd6 11. c4 b6 12. a3 Ne7 13. b4 dxc4 14. Nxc4 Ned5 15. Qc2 Nf4 16. Bxf4 Bxf4 17. Rad1 Bb7 18. Nfe5 Qe8 19. Bf3 Bxf3 20. Nxf3 Nd5 21. Rfe1 a5 22. bxa5 b5 23. Ne3 Qh5 24. Nxd5 exd5 25. Qc3 Ra6 26. h3 Qf7 27. Rd3 c6 28. Re2 Qc7 29. Re6 Qd7 30. Qe1 Rxa5 31. Re7 Qf5 32. Qe6+ Qxe6 33. Rxe6 Rfa8 34. g3 Bc1 35. Ne5 Bxa3 36. Nxc6 Ra4 37. Rb3 Rc4 38. Ne5 Rc1+ 39. Kg2 b4 40. Nd3 Rc4 41. Rb6 Rxd4 42. Nxb4 Bxb4 1/2-1/2

[Event "POR-chT 1st League 2017"]
[Site "Leiria"]
[Date "2017.07.17"]
[Round "1"]
[White "Barrero Garcia, Carlos"]
[Black "Reis, Luis Sousa"]
[Result "1-0"]
[ECO "C02"]
[WhiteElo "2309"]
[BlackElo "2182"]
[Annotator "NA"]
[PlyCount "51"]
[EventDate "2017.??.??"]
[EventType "team-tourn"]
[EventCountry "POR"]
[SourceTitle "playchess.com"]
[Source "ChessBase"]
[SourceQuality "1"]
[TimeControl "5400+30"]

1. e4 e6 2. d4 d5 3. e5 Ne7 4. Nf3 Nd7 5. Bd3 c5 6. c3 Nc6 7. O-O Be7 8. Be3 Qb6 9. Qd2 c4 10. Be2 f6 11. exf6 Nxf6 12. Bxc4 dxc4 13. d5 Qa6 14. dxc6 Qxc6 15. Qe2 b5 16. a4 bxa4 17. Nd4 Qd5 18. Re1 Bd7 19. Nd2 $11 Rc8 20. N2f3 O-O 21. Bg5 Rb8 22. Ne5 Rfc8 23. Rad1 Bb5 24. Nf5 Qb7 25. Ng6 hxg6 26. Qxe6+ 1-0

[Event "POR-chT 1st League 2017"]
[Site "Leiria"]
[Date "2017.07.17"]
[Round "1"]
[White "Padeiro, Jose"]
[Black "Cavaleiro, Daniel Felipe Costa"]
[Result "*"]
[WhiteElo "2276"]
[BlackElo "2006"]
[Annotator "NA"]
[PlyCount "22"]
[EventDate "2017.??.??"]
[EventType "team-tourn"]
[EventCountry "POR"]
[SourceTitle "playchess.com"]
[Source "ChessBase"]
[SourceQuality "1"]
[TimeControl "5400+30"]

1. d4 {[%emt 0:00:00]} c5 {[%emt 0:01:02]} 2. d5 {[%emt 0:00:14]} e5 {[%emt 0:00:09]} 3. c4 {[%emt 0:02:54]} d6 {[%emt 0:00:06]} 4. Nc3 {[%emt 0:01:04]} Be7 {[%emt 0:05:32]} 5. Nf3 {[%emt 0:03:10]} f5 {[%emt 0:01:59]} 6. h4 {[%emt 0:03:06]} h6 {[%emt 0:02:31]} 7. e4 {[%emt 0:04:53]} Nf6 {[%emt 0:04:03]} 8. Qc2 {[%emt 0:11:18]} f4 {[%emt 0:00:51]} 9. g3 {[%emt 0:04:26]} fxg3 $11 {[%emt 0:01:58]} 10. fxg3 {[%emt 0:00:22]} O-O {[%emt 0:03:41]} 11. Qg2 {[%emt 0:08:36]} Qe8 *

[Event "POR-chT 1st League 2017"]
[Site "Leiria"]
[Date "2017.07.17"]
[Round "1"]
[White "Maisuradze, Nino"]
[Black "Andrade, Jose M Vieira"]
[Result "1-0"]
[ECO "A40"]
[WhiteElo "2266"]
[BlackElo "2223"]
[Annotator "NA"]
[PlyCount "45"]
[EventDate "2017.??.??"]
[EventType "team-tourn"]
[EventCountry "POR"]
[SourceTitle "playchess.com"]
[Source "ChessBase"]
[SourceQuality "1"]
[TimeControl "5400+30"]

1. d4 {[%emt 0:00:00]} e6 {[%emt 0:00:37]} 2. Nf3 {[%emt 0:00:00]} Nf6 {[%emt 0:00:20]} 3. Bf4 {[%emt 0:00:46]} b6 {[%emt 0:02:02]} 4. e3 {[%emt 0:00:26]} Bb7 {[%emt 0:00:08]} 5. Nbd2 {[%emt 0:00:15]} Nh5 {[%emt 0:03:07]} 6. Bg5 {[%emt 0:00:26]} Be7 {[%emt 0:00:09]} 7. h4 {[%emt 0:02:20]} f5 {[%emt 0:07:48]} 8. Bd3 {[%emt 0:04:17]} Nf6 {[%emt 0:04:08]} 9. Bxf6 {[%emt 0:01:45]} Bxf6 {[%emt 0:00:06]} 10. e4 {[%emt 0:00:27]} fxe4 {[%emt 0:24:14]} 11. Nxe4 {[%emt 0:00:12]} Qe7 12. c3 {[%emt 0:17:12]} Nc6 {[%emt 0:06:56]} 13. Qe2 {[%emt 0:03:43]} O-O-O {[%emt 0:06:01]} 14. O-O-O {[%emt 0:02:26]} Kb8 {[%emt 0:08:23]} 15. Kb1 {[%emt 0:02:34]} d5 {[%emt 0:06:02]} 16. Neg5 {[%emt 0:06:58]} e5 {[%emt 0:13:08]} 17. dxe5 {[%emt 0:00:35]} Nxe5 {[%emt 0:05:23]} 18. Nxe5 {[%emt 0:00:47]} Bxe5 {[%emt 0:00:15]} 19. Rde1 {[%emt 0:07:05]} Rde8 {[%emt 0:01:45]} 20. Rh3 {[%emt 0:02:48]} d4 {[%emt 0:09:18]} 21. cxd4 {[%emt 0:00:34]} Bf6 {[%emt 0:00:33]} 22. Re3 {[%emt 0:00:20]} Bxg5 {[%emt 0:00:12]} 23. hxg5 {[%emt 0:00:52]} 1-0

[Event "POR-chT 1st League 2017"]
[Site "Leiria"]
[Date "2017.07.17"]
[Round "1"]
[White "Diogo, Vasco"]
[Black "Neto, Horacio"]
[Result "1/2-1/2"]
[ECO "B32"]
[WhiteElo "2213"]
[BlackElo "2162"]
[Annotator "ChessBase"]
[PlyCount "124"]
[EventDate "2017.??.??"]
[EventType "team-tourn"]
[EventCountry "POR"]
[SourceTitle "playchess.com"]
[Source "ChessBase"]
[SourceQuality "1"]
[TimeControl "5400+30"]

1. e4 {[%emt 0:00:00]} c5 {[%emt 0:13:22]} 2. Nf3 {[%emt 0:00:00]} Nc6 {[%emt 0:00:01]} 3. d4 {[%emt 0:00:00]} cxd4 {[%emt 0:00:02]} 4. Nxd4 {[%emt 0:00:00]} e5 {[%emt 0:00:08]} 5. Nb5 {[%emt 0:00:05]} d6 {[%emt 0:00:07]} 6. N1c3 {[%emt 0:00:47]} a6 {[%emt 0:01:27]} 7. Na3 {[%emt 0:00:05]} Be7 {[%emt 0:00:38]} 8. Nd5 {[%emt 0:03:44]} Nf6 {[%emt 0:02:43]} 9. Be3 {[%emt 0:06:01]} Nxd5 {[%emt 0:02:22]} 10. exd5 {[%emt 0:00:27]} Nb8 {[%emt 0:00:20]} 11. Nc4 {[%emt 0:02:22]} Nd7 {[%emt 0:07:59]} 12. a4 {[%emt 0:03:22]} O-O {[%emt 0:02:34]} 13. a5 {[%emt 0:13:13]} f5 {[%emt 0:08:12]} 14. Be2 {[%emt 0:04:24]} Rb8 {[%emt 0:22:48]} 15. O-O {[%emt 0:02:47]} f4 {[%emt 0:03:49]} 16. Ba7 {[%emt 0:04:13]} Ra8 {[%emt 0:00:23]} 17. Bb6 {[%emt 0:00:05]} Qe8 {[%emt 0:02:58]} 18. Bc7 {[%emt 0:12:29]} Qg6 {[%emt 0:03:44]} 19. Bh5 {[%emt 0:02:31]} Qh6 {[%emt 0:00:47]} 20. Ra3 {[%emt 0:06:09]} Nf6 {[%emt 0:05:11]} 21. Be2 {[%emt 0:00:52]} Ne8 {[%emt 0:02:21]} 22. Bb6 {[%emt 0:01:20]} Bf5 {[%emt 0:07:19]} 23. f3 {[%emt 0:06:02]} Qg5 {[%emt 0:04:41]} 24. Nd2 {[%emt 0:04:17]} Nf6 {[%emt 0:00:22]} 25. Bd3 {[%emt 0:01:57]} Rac8 {[%emt 0:00:52]} 26. Rf2 {[%emt 0:03:24]} Nd7 {[%emt 0:02:40]} 27. Bxf5 {[%emt 0:02:15]} Rxf5 {[%emt 0:00:39]} 28. Ne4 {[%emt 0:01:41]} Qg6 {[%emt 0:00:06]} 29. Rb3 {[%emt 0:01:22]} Rh5 {[%emt 0:01:05]} 30. Re2 {[%emt 0:02:23]} Nxb6 {[%emt 0:01:34]} 31. Rxb6 {[%emt 0:00:57]} Rc7 {[%emt 0:00:05]} 32. Qd3 {[%emt 0:01:56]} Rh6 {[%emt 0:02:12]} 33. c4 {[%emt 0:05:45]} Qe8 {[%emt 0:01:15]} 34. Qb3 {[%emt 0:00:32]} Qc8 {[%emt 0:00:11]} 35. c5 {[%emt 0:00:17]} Rxc5 {[%emt 0:00:17]} 36. Re1 {[%emt 0:04:47]} Rc1 {[%emt 0:00:23]} 37. Rd1 {[%emt 0:00:54]} Bd8 {[%emt 0:00:42]} 38. Nc3 {[%emt 0:04:11]} Qc5+ {[%emt 0:00:43]} 39. Kh1 {[%emt 0:00:19]} Rxd1+ {[%emt 0:00:22]} 40. Qxd1 {[%emt 0:00:37]} Bxb6 {[%emt 0:00:09]} 41. axb6 {[%emt 0:00:06]} Qxb6 {[%emt 0:00:38]} 42. Qa4 {[%emt 0:00:15]} Qd8 {[%emt 0:01:40]} 43. Ne4 {[%emt 0:00:19]} Rh5 {[%emt 0:00:38]} 44. h3 {[%emt 0:00:09]} h6 {[%emt 0:00:13]} 45. Qb4 {[%emt 0:00:09]} Rf5 {[%emt 0:00:32]} 46. Nxd6 {[%emt 0:00:38]} Rf6 {[%emt 0:00:18]} 47. Ne4 {[%emt 0:00:21]} Rb6 {[%emt 0:00:06]} 48. Qc4 {[%emt 0:00:18]} Rxb2 {[%emt 0:00:35]} 49. d6+ {[%emt 0:00:07]} Kh7 {[%emt 0:00:07]} 50. Qf7 {[%emt 0:01:06]} Rb1+ {[%emt 0:00:44]} 51. Kh2 {[%emt 0:00:04]} a5 {[%emt 0:01:16]} 52. Qe7 {[%emt 0:00:33]} Qb6 {[%emt 0:01:13]} 53. Nf6+ {[%emt 0:02:39]} Kg6 {[%emt 0:00:02]} 54. Qe8+ {[%emt 0:00:45]} Kf5 {[%emt 0:00:28]} 55. Qd7+ {[%emt 0:00:18]} Kxf6 {[%emt 0:00:29]} 56. Qe7+ {[%emt 0:00:07]} Kg6 {[%emt 0:00:32]} 57. Qe6+ {[%emt 0:00:14]} Kh7 {[%emt 0:00:19]} 58. Qf5+ {[%emt 0:00:06]} Kg8 {[%emt 0:00:24]} 59. Qc8+ {[%emt 0:00:17]} Kf7 60. Qf5+ {[%emt 0:00:21]} Kg8 {[%emt 0:01:45]} 61. Qc8+ {[%emt 0:00:09]} Kf7 {[%emt 0:00:13]} 62. Qf5+ {[%emt 0:00:22]} Kg8 {[%emt 0:00:01]} 1/2-1/2

[Event "POR-chT 1st League 2017"]
[Site "Leiria"]
[Date "2017.07.17"]
[Round "1"]
[White "Leao, Tiago Miguel Da Sil"]
[Black "Moreira, Bruno Marcio Pascoa"]
[Result "1-0"]
[ECO "B42"]
[WhiteElo "2075"]
[BlackElo "1882"]
[Annotator "NA"]
[PlyCount "67"]
[EventDate "2017.??.??"]
[EventType "team-tourn"]
[EventCountry "POR"]
[SourceTitle "playchess.com"]
[Source "ChessBase"]
[SourceQuality "1"]
[TimeControl "5400+30"]

1. e4 {[%emt 0:13:01]} c5 {[%emt 0:00:28]} 2. Nf3 {[%emt 0:01:08]} e6 {[%emt 0:00:14]} 3. d4 {[%emt 0:00:34]} cxd4 {[%emt 0:00:09]} 4. Nxd4 {[%emt 0:00:06]} a6 {[%emt 0:00:08]} 5. Bd3 {[%emt 0:02:15]} Bc5 {[%emt 0:04:32]} 6. Nb3 {[%emt 0:03:23]} Ba7 {[%emt 0:02:02]} 7. O-O {[%emt 0:00:48]} Nc6 {[%emt 0:01:35]} 8. Qe2 {[%emt 0:04:00]} Nge7 {[%emt 0:04:30]} 9. Nc3 {[%emt 0:00:42]} O-O {[%emt 0:17:55]} 10. Be3 {[%emt 0:05:03]} Bxe3 {[%emt 0:05:16]} 11. Qxe3 {[%emt 0:02:21]} e5 {[%emt 0:02:25]} 12. Nd5 {[%emt 0:10:47]} b5 {[%emt 0:13:43]} 13. a4 {[%emt 0:08:42]} Rb8 {[%emt 0:08:53]} 14. axb5 {[%emt 0:06:32]} axb5 {[%emt 0:01:49]} 15. Qe2 {[%emt 0:02:04]} b4 {[%emt 0:03:25]} 16. Rfd1 {[%emt 0:03:25]} d6 {[%emt 0:02:33]} 17. Bc4 {[%emt 0:08:58]} Kh8 {[%emt 0:09:12]} 18. Qd2 {[%emt 0:05:39]} f5 {[%emt 0:13:00]} 19. Nxe7 {[%emt 0:05:15]} Nxe7 {[%emt 0:00:43]} 20. Qxd6 {[%emt 0:00:16]} Qxd6 {[%emt 0:00:23]} 21. Rxd6 {[%emt 0:00:07]} fxe4 {[%emt 0:00:20]} 22. Ra7 {[%emt 0:03:48]} Nf5 {[%emt 0:02:00]} 23. Rc6 {[%emt 0:01:56]} e3 {[%emt 0:01:21]} 24. fxe3 {[%emt 0:04:45]} Nxe3 {[%emt 0:00:50]} 25. Be2 {[%emt 0:05:18]} Bf5 {[%emt 0:00:22]} 26. Rcc7 {[%emt 0:00:43]} g5 {[%emt 0:00:55]} 27. Nc5 {[%emt 0:01:00]} Rbc8 {[%emt 0:02:15]} 28. Nd3 {[%emt 0:00:39]} Nxc2 {[%emt 0:01:12]} 29. Nxe5 {[%emt 0:00:29]} Rce8 {[%emt 0:01:24]} 30. Nf7+ {[%emt 0:00:20]} Kg8 {[%emt 0:00:40]} 31. Nh6+ {[%emt 0:00:38]} Kh8 {[%emt 0:00:37]} 32. Nxf5 {[%emt 0:00:21]} Rxf5 {[%emt 0:00:13]} 33. Rxh7+ {[%emt 0:00:13]} Kg8 {[%emt 0:00:20]} 34. Bc4+ {[%emt 0:00:07]} 1-0

[Event "POR-chT 1st League 2017"]
[Site "Leiria"]
[Date "2017.07.17"]
[Round "1"]
[White "Pinheiro, Albano"]
[Black "Navarro Duarte, Carlos Enrique"]
[Result "1-0"]
[ECO "C44"]
[WhiteElo "2071"]
[BlackElo "2195"]
[Annotator "NA"]
[PlyCount "65"]
[EventDate "2017.??.??"]
[EventType "team-tourn"]
[EventCountry "POR"]
[SourceTitle "playchess.com"]
[Source "ChessBase"]
[SourceQuality "1"]
[TimeControl "5400+30"]

1. e4 {[%emt 0:00:00]} e5 {[%emt 0:00:13]} 2. Nf3 {[%emt 0:00:00]} Nc6 {[%emt 0:00:30]} 3. d4 {[%emt 0:00:00]} exd4 {[%emt 0:03:08]} 4. Nxd4 {[%emt 0:00:00]} Qe7 {[%emt 0:07:11]} 5. Nc3 {[%emt 0:04:43]} Nf6 {[%emt 0:11:05]} 6. Nxc6 {[%emt 0:06:48]} dxc6 {[%emt 0:03:13]} 7. Bd3 {[%emt 0:03:27]} g6 {[%emt 0:06:39]} 8. O-O {[%emt 0:02:14]} Bg7 {[%emt 0:01:53]} 9. h3 {[%emt 0:08:55]} O-O {[%emt 0:04:11]} 10. Bg5 {[%emt 0:09:25]} h6 {[%emt 0:10:37]} 11. Bh4 {[%emt 0:04:32]} g5 {[%emt 0:05:12]} 12. Bg3 {[%emt 0:00:14]} Be6 $16 {[%emt 0:00:42]} 13. Qe2 {[%emt 0:03:58]} Rac8 {[%emt 0:02:54]} 14. Rae1 {[%emt 0:03:59]} Nd7 {[%emt 0:02:58]} 15. f4 {[%emt 0:07:58]} Bd4+ {[%emt 0:09:55]} 16. Kh2 {[%emt 0:04:42]} f6 {[%emt 0:02:36]} 17. Bc4 {[%emt 0:06:38]} Bf7 {[%emt 0:03:14]} 18. Bxf7+ {[%emt 0:05:34]} Qxf7 {[%emt 0:01:25]} 19. Qd2 {[%emt 0:07:59]} Bxc3 {[%emt 0:01:01]} 20. Qxc3 {[%emt 0:00:23]} Rfe8 {[%emt 0:01:53]} 21. e5 {[%emt 0:04:55]} Nf8 {[%emt 0:01:53]} 22. fxg5 {[%emt 0:01:44]} hxg5 {[%emt 0:00:08]} 23. Rxf6 {[%emt 0:01:06]} Qd5 {[%emt 0:01:09]} 24. Ref1 {[%emt 0:03:17]} Re6 {[%emt 0:01:55]} 25. Qe3 {[%emt 0:05:05]} Nh7 {[%emt 0:01:19]} 26. Rxe6 {[%emt 0:03:34]} Qxe6 {[%emt 0:00:05]} 27. b3 {[%emt 0:00:43]} b6 {[%emt 0:00:12]} 28. c4 {[%emt 0:01:29]} c5 {[%emt 0:00:19]} 29. Rd1 {[%emt 0:01:07]} Kg7 {[%emt 0:00:29]} 30. Qe4 {[%emt 0:00:34]} c6 {[%emt 0:01:35]} 31. Rd6 {[%emt 0:00:27]} Qf7 {[%emt 0:00:38]} 32. e6 {[%emt 0:01:36]} Qe7 {[%emt 0:04:14]} 33. Rd7 1-0

[Event "POR-chT 1st League 2017"]
[Site "Leiria"]
[Date "2017.07.17"]
[Round "1"]
[White "Cavaleiro, Daniel Felipe Costa"]
[Black "Padeiro, Jose"]
[Result "0-1"]
[ECO "A44"]
[WhiteElo "2006"]
[BlackElo "2276"]
[Annotator "ChessBase"]
[PlyCount "58"]
[EventDate "2017.??.??"]
[EventType "team-tourn"]
[EventCountry "POR"]
[SourceTitle "playchess.com"]
[Source "ChessBase"]
[SourceQuality "1"]
[TimeControl "5400+30"]

1. d4 {[%emt 0:00:00]} c5 {[%emt 0:01:02]} 2. d5 {[%emt 0:00:14]} e5 {[%emt 0:00:09]} 3. c4 {[%emt 0:02:54]} d6 {[%emt 0:00:06]} 4. Nc3 {[%emt 0:01:04]} Be7 {[%emt 0:05:32]} 5. Nf3 {[%emt 0:03:10]} f5 {[%emt 0:01:59]} 6. h4 {[%emt 0:03:06]} h6 {[%emt 0:02:31]} 7. e4 {[%emt 0:04:53]} Nf6 {[%emt 0:04:03]} 8. Qc2 {[%emt 0:11:18]} f4 {[%emt 0:00:51]} 9. g3 {[%emt 0:04:26]} fxg3 {[%emt 0:01:58]} 10. fxg3 {[%emt 0:00:22]} O-O {[%emt 0:10:38]} 11. Qg2 {[%emt 0:08:36]} Qe8 12. Be2 {[%emt 0:08:00]} Qg6 {[%emt 0:13:22]} 13. Ng5 {[%emt 0:07:50]} Bd8 {[%emt 0:19:32]} 14. Ne6 {[%emt 0:16:19]} Bxe6 {[%emt 0:00:11]} 15. dxe6 {[%emt 0:00:05]} Ba5 {[%emt 0:00:25]} 16. O-O {[%emt 0:02:57]} Bxc3 {[%emt 0:01:40]} 17. bxc3 {[%emt 0:00:29]} Nc6 {[%emt 0:00:15]} 18. Bf3 {[%emt 0:07:21]} Rae8 {[%emt 0:02:27]} 19. Rb1 {[%emt 0:01:42]} Nd8 {[%emt 0:02:04]} 20. Rb2 {[%emt 0:02:43]} b6 {[%emt 0:03:54]} 21. g4 {[%emt 0:00:50]} Nxe6 {[%emt 0:00:24]} 22. h5 {[%emt 0:04:05]} Qf7 {[%emt 0:02:16]} 23. Rbf2 {[%emt 0:04:56]} Nh7 {[%emt 0:07:47]} 24. Bd1 {[%emt 0:00:52]} Nf4 {[%emt 0:04:46]} 25. Bxf4 {[%emt 0:00:34]} exf4 {[%emt 0:00:05]} 26. Ba4 {[%emt 0:00:23]} Re5 {[%emt 0:03:21]} 27. Bc6 {[%emt 0:00:35]} Qf6 {[%emt 0:00:36]} 28. Qf3 {[%emt 0:01:02]} Ng5 {[%emt 0:00:28]} 29. Qd3 {[%emt 0:01:04]} f3 {[%emt 0:00:10]} 0-1

[Event "POR-chT 1st League 2017"]
[Site "Leiria"]
[Date "2017.07.18"]
[Round "2"]
[White "Polaczek, Richard"]
[Black "Reis, Luis Sousa"]
[Result "1-0"]
[ECO "A46"]
[WhiteElo "2406"]
[BlackElo "2182"]
[Annotator "NA"]
[PlyCount "50"]
[EventDate "2017.??.??"]
[EventType "team-tourn"]
[EventCountry "POR"]
[SourceTitle "playchess.com"]
[Source "ChessBase"]
[SourceQuality "1"]
[TimeControl "5400+30"]

1. d4 {[%emt 0:00:00]} Nf6 {[%emt 0:00:31]} 2. Nf3 {[%emt 0:00:38]} e6 {[%emt 0:00:49]} 3. c4 {[%emt 0:00:30]} c5 {[%emt 0:00:50]} 4. g3 {[%emt 0:00:17]} cxd4 {[%emt 0:01:33]} 5. Nxd4 {[%emt 0:00:12]} d5 {[%emt 0:05:33]} 6. Bg2 {[%emt 0:01:04]} e5 {[%emt 0:02:58]} 7. Nf3 {[%emt 0:01:06]} d4 {[%emt 0:02:35]} 8. O-O {[%emt 0:00:15]} Nc6 {[%emt 0:00:23]} 9. e3 Be7 {[%emt 0:14:43]} 10. exd4 {[%emt 0:09:06]} exd4 {[%emt 0:00:32]} 11. Nbd2 O-O {[%emt 0:13:23]} 12. Nb3 {[%emt 0:03:45]} d3 {[%emt 0:03:01]} 13. Be3 {[%emt 0:00:44]} Bf5 14. Nfd4 {[%emt 0:04:29]} Nxd4 {[%emt 0:06:45]} 15. Nxd4 {[%emt 0:00:57]} Bg6 16. Bxb7 Rb8 {[%emt 0:17:32]} 17. Bf3 {[%emt 0:21:43]} Rxb2 {[%emt 0:02:18]} 18. Nc6 {[%emt 0:01:38]} Qc7 {[%emt 0:02:51]} 19. Re1 {[%emt 0:08:27]} Bb4 {[%emt 0:17:33]} 20. Rf1 {[%emt 0:13:38]} Bc3 21. Rb1 {[%emt 0:07:26]} Ne4 {[%emt 0:05:46]} 22. Rxb2 {[%emt 0:04:24]} Bxb2 {[%emt 0:00:45]} 23. Qa4 {[%emt 0:00:13]} Rc8 {[%emt 0:01:00]} 24. Nxa7 {[%emt 0:03:55]} Qxc4 {[%emt 0:00:22]} 25. Qd7 {[%emt 0:00:17]} Rf8 {[%emt 0:01:17]} 1-0

[Event "POR-chT 1st League 2017"]
[Site "Leiria"]
[Date "2017.07.18"]
[Round "2"]
[White "Trigo Urquijo, Sergio"]
[Black "Tubio Agrasar, Pablo"]
[Result "1-0"]
[ECO "B23"]
[WhiteElo "2389"]
[BlackElo "1988"]
[Annotator "NA"]
[PlyCount "53"]
[EventDate "2017.??.??"]
[EventType "team-tourn"]
[EventCountry "POR"]
[SourceTitle "playchess.com"]
[Source "ChessBase"]
[SourceQuality "1"]
[TimeControl "5400+30"]

1. e4 c5 2. Nc3 d6 3. g3 Nf6 4. Bg2 g6 5. Nge2 Bg7 6. O-O O-O 7. h3 Nc6 8. d3 e6 9. f4 Nd4 10. Nxd4 cxd4 11. Ne2 Nd7 12. c3 dxc3 13. bxc3 b6 14. Ba3 Nc5 15. d4 Nb7 16. e5 Rb8 17. Qa4 a5 18. Rab1 Bd7 19. Bc6 Bxc6 20. Qxc6 Qc8 21. Qxc8 Rfxc8 22. Rxb6 dxe5 23. fxe5 Nd8 24. Rfb1 Nc6 25. Kf2 Bf8 26. Bxf8 Kxf8 27. Rxc6 1-0

[Event "POR-chT 1st League 2017"]
[Site "Leiria"]
[Date "2017.07.18"]
[Round "2"]
[White "Andrade, Jose M Vieira"]
[Black "Leao, Tiago Miguel Da Sil"]
[Result "0-1"]
[ECO "B21"]
[WhiteElo "2223"]
[BlackElo "2075"]
[Annotator "NA"]
[PlyCount "64"]
[EventDate "2017.??.??"]
[EventType "team-tourn"]
[EventCountry "POR"]
[SourceTitle "playchess.com"]
[Source "ChessBase"]
[SourceQuality "1"]
[TimeControl "5400+30"]

1. e4 c5 {[%emt 0:00:58]} 2. d4 {[%emt 0:00:00]} cxd4 {[%emt 0:00:15]} 3. c3 {[%emt 0:00:00]} Nf6 {[%emt 0:02:52]} 4. e5 {[%emt 0:00:00]} Nd5 {[%emt 0:00:06]} 5. Nf3 {[%emt 0:00:30]} Nc6 {[%emt 0:06:06]} 6. cxd4 {[%emt 0:00:40]} d6 {[%emt 0:01:20]} 7. Bc4 {[%emt 0:05:32]} dxe5 8. dxe5 {[%emt 0:12:39]} e6 {[%emt 0:14:19]} 9. O-O Nb6 {[%emt 0:06:04]} 10. Bd3 {[%emt 0:06:43]} Nb4 {[%emt 0:07:22]} 11. Be4 {[%emt 0:00:33]} Qxd1 {[%emt 0:06:20]} 12. Rxd1 Bd7 13. Nc3 {[%emt 0:02:28]} Bc6 {[%emt 0:02:30]} 14. Bxc6+ {[%emt 0:13:32]} bxc6 {[%emt 0:04:24]} 15. b3 {[%emt 0:06:27]} N4d5 {[%emt 0:08:35]} 16. Ne4 Be7 {[%emt 0:08:13]} 17. Bb2 {[%emt 0:01:22]} Rc8 {[%emt 0:01:19]} 18. Rac1 {[%emt 0:01:14]} c5 {[%emt 0:02:31]} 19. Ba3 {[%emt 0:05:38]} Nd7 {[%emt 0:02:39]} 20. g3 {[%emt 0:16:01]} O-O {[%emt 0:00:51]} 21. Rd2 {[%emt 0:00:50]} Rc6 {[%emt 0:04:43]} 22. Rdc2 {[%emt 0:11:33]} Rfc8 {[%emt 0:02:35]} 23. Nd4 cxd4 {[%emt 0:06:55]} 24. Rxc6 {[%emt 0:00:38]} Rxc6 {[%emt 0:00:12]} 25. Rxc6 {[%emt 0:00:05]} Bxa3 {[%emt 0:00:09]} 26. Ra6 {[%emt 0:04:23]} Nc5 {[%emt 0:02:45]} 27. Rxa3 {[%emt 0:00:46]} Nxe4 {[%emt 0:00:04]} 28. Ra4 {[%emt 0:08:56]} Ndc3 {[%emt 0:03:29]} 29. Rxa7 {[%emt 0:00:25]} Kf8 {[%emt 0:00:09]} 30. f3 {[%emt 0:02:09]} d3 {[%emt 0:01:16]} 31. fxe4 {[%emt 0:00:43]} d2 {[%emt 0:00:06]} 32. Rd7 {[%emt 0:00:05]} Nd5 {[%emt 0:00:25]} 0-1